bitfinex/quotes_SOLUSD_20250522
["timestamp","ask_amount","ask_price","bid_price","bid_amount"]
[1747923621129,5.60569538,178.39,178.31,60.26964886]
[1747923621334,5.60569538,178.39,178.32,33.62]
[1747923621795,5.60569538,178.39,178.33,33.62]
[1747923624123,5.60569538,178.39,178.33,39.22751565]
[1747923624833,14.01280362,178.41,178.34,18.64964886]
[1747923624834,5.60506698,178.41,178.34,18.64964886]
[1747923625504,5.60506698,178.41,178.34,24.2568704]
[1747923626619,5.60475283,178.42,178.34,24.2568704]
[1747923627235,5.60381059,178.45,178.36,18.64964886]
[1747923628139,5.60381059,178.45,178.37,0.14216157]
[1747923628322,5.60381059,178.45,178.38,75.22]
[1747923628630,19.61161135,178.47,178.38,80.82575633]
[1747923628832,19.61161135,178.47,178.38,75.22]
[1747923629335,38.6149413,178.47,178.38,101.22]
[1747923630134,38.6149413,178.47,178.38,106.82585939]
[1747923631605,5.6031826,178.47,178.38,106.82585939]
[1747923632022,5.6031826,178.47,178.39,18.64964886]
[1747923632937,5.6031826,178.47,178.39,24.25504486]
[1747923633140,11.8208478,178.48,178.39,24.25504486]
[1747923634345,5.60255476,178.49,178.42,26.0]
[1747923634520,5.60255476,178.49,178.43,33.6]
[1747923635540,5.60233336,178.5,178.43,33.6]
[1747923635731,5.60198049,178.51,178.43,33.6]
[1747923636036,20.53332995,178.54,178.43,33.6]
[1747923636037,1.53,178.54,178.46,26.0]
[1747923636214,1.53,178.54,178.47,41.6]
[1747923636413,11.94019024,178.56,178.48,39.20261781]
[1747923637142,6.3396,178.56,178.49,18.64964886]
[1747923637441,5.60013731,178.57,178.49,18.64964886]
[1747923638447,24.60306116,178.58,178.49,18.64964886]
[1747923638739,19.00332995,178.57,178.48,33.6]
[1747923639941,19.60125447,178.56,178.48,33.6]
[1747923640430,38.60458442,178.56,178.48,33.6]
[1747923640642,38.60458442,178.56,178.49,18.79181043]
[1747923640643,5.60035842,178.56,178.49,18.79181043]
[1747923642144,5.6000448,178.57,178.49,24.39415853]
[1747923642446,5.6000448,178.57,178.49,18.79181043]
[1747923643047,5.6000448,178.57,178.49,24.39428969]
[1747923644020,5.59973121,178.58,178.49,24.39428969]
[1747923644227,5.59973121,178.58,178.53,18.64964886]
[1747923644444,5.59973121,178.58,178.54,75.06]
[1747923645129,5.59941766,178.59,178.54,75.06]
[1747923645332,19.00332995,178.56,178.54,41.46]
[1747923645533,19.00332995,178.55,178.54,41.46]
[1747923646024,19.00332995,178.55,178.49,75.04]
[1747923646349,19.00332995,178.54,178.49,75.04]
[1747923646845,19.00332995,178.54,178.49,41.46]
[1747923647247,24.60462945,178.53,178.49,41.46]
[1747923648036,5.6012995,178.53,178.49,41.46]
[1747923648745,26.0,178.5,178.44,209.66]
[1747923648945,26.0,178.5,178.45,75.04]
[1747923649248,26.0,178.5,178.45,41.46]
[1747923649249,5.60255476,178.49,178.45,41.46]
[1747923649425,5.60255476,178.49,178.45,75.04]
[1747923649426,38.61227162,178.49,178.45,75.04]
[1747923649626,19.00332995,178.48,178.45,75.04]
[1747923649939,38.61227162,178.49,178.45,75.04]
[1747923650367,5.60255476,178.49,178.45,75.04]
[1747923651932,5.60231099,178.5,178.45,75.04]
[1747923652544,5.60161326,178.52,178.45,75.04]
[1747923652736,1.5433,178.57,178.46,18.79181043]
[1747923652737,5.60067208,178.55,178.46,18.79181043]
[1747923652931,31.60067208,178.55,178.46,18.79181043]
[1747923653334,80.22111856,178.63,178.49,0.14216157]
[1747923653335,5.60042635,178.56,178.49,0.14216157]
[1747923653549,20.08529564,178.6,178.51,18.64964886]
[1747923653849,20.08529564,178.6,178.52,41.46]
[1747923654052,39.08862559,178.6,178.52,41.46]
[1747923654346,5.59941766,178.59,178.52,41.46]
[1747923654533,5.59941766,178.59,178.53,41.46]
[1747923654534,19.00332995,178.56,178.53,41.46]
[1747923655447,5.60035842,178.56,178.53,41.46]
[1747923655753,24.60368837,178.56,178.53,41.46]
[1747923655945,5.60035842,178.56,178.53,41.46]
[1747923657446,33.00295618,178.58,178.53,41.46]
[1747923659253,13.99962623,178.58,178.53,41.46]
[1747923659471,5.59941766,178.59,178.53,41.46]
[1747923659962,5.59941766,178.59,178.54,0.14216157]
[1747923660131,5.59941766,178.59,178.54,18.64964886]
[1747923660332,5.59941766,178.59,178.53,41.46]
[1747923662157,19.59714461,178.6,178.53,41.46]
[1747923662527,5.59910414,178.6,178.54,18.64964886]
[1747923662732,5.5981638,178.63,178.55,0.14216157]
[1747923662955,5.5981638,178.63,178.56,33.58]
[1747923663168,24.60149375,178.63,178.56,33.58]
[1747923663331,38.59690325,178.63,178.56,33.58]
[1747923663532,19.5935733,178.63,178.56,33.58]
[1747923664139,5.59753708,178.65,178.57,18.79181043]
[1747923664361,5.59753708,178.65,178.57,44.79181043]
[1747923664734,19.00332995,178.66,178.57,44.79181043]
[1747923664931,19.00332995,178.65,178.57,18.64964886]
[1747923665241,19.00332995,178.66,178.57,18.64964886]
[1747923666263,19.59137978,178.65,178.57,18.64964886]
[1747923668871,19.59137978,178.65,178.56,33.58]
[1747923668872,92.58239514,178.65,178.56,33.58]
[1747923669038,19.00332995,178.64,178.56,33.58]
[1747923669242,92.58239514,178.65,178.56,33.58]
[1747923670462,19.00332995,178.63,178.54,0.14216157]
[1747923670766,19.00332995,178.63,178.57,75.02]
[1747923671152,20.65332995,178.64,178.57,75.02]
[1747923671350,45.59137978,178.65,178.57,75.02]
[1747923671660,5.59753708,178.65,178.58,18.64964886]
[1747923671838,5.59753708,178.65,178.58,44.64964886]
[1747923672234,19.00332995,178.64,178.57,75.02]
[1747923672464,24.60149375,178.63,178.57,75.02]
[1747923672637,38.59690325,178.63,178.57,75.02]
[1747923673272,19.00332995,178.61,178.58,74.86]
[1747923673444,19.00332995,178.59,178.55,74.86]
[1747923673643,19.00332995,178.58,178.54,74.86]
[1747923673846,19.00332995,178.59,178.54,74.86]
[1747923674054,19.00332995,178.58,178.54,41.3]
[1747923674257,19.00332995,178.58,178.54,74.86]
[1747923674474,5.6000448,178.57,178.54,74.86]
[1747923674672,19.00332995,178.55,178.46,0.14216157]
[1747923674843,19.00332995,178.54,178.47,100.86]
[1747923675161,19.00332995,178.54,178.47,74.86]
[1747923675387,19.00332995,178.52,178.47,74.88]
[1747923675663,19.00332995,178.51,178.47,74.88]
[1747923676463,5.60224089,178.5,178.47,74.88]
[1747923677260,24.60557084,178.5,178.47,41.3]
[1747923677482,19.00332995,178.49,178.47,41.3]
[1747923677668,24.60557084,178.5,178.47,41.3]
[1747923679072,5.60224089,178.5,178.47,41.3]
[1747923679582,24.60557084,178.5,178.47,41.3]
[1747923679768,5.60224089,178.5,178.47,41.3]
[1747923680370,19.00332995,178.49,178.47,41.3]
[1747923680878,5.60286866,178.48,178.47,41.3]
[1747923681282,24.60619861,178.48,178.47,41.3]
[1747923681581,38.61337028,178.48,178.42,41.32]
[1747923681784,19.00332995,178.45,178.4,33.58]
[1747923681954,19.00332995,178.45,178.34,16.74052175]
[1747923681955,19.00332995,178.41,178.3,1.6647]
[1747923682159,19.00332995,178.37,178.33,250.84]
[1747923682469,19.00332995,178.34,178.27,74.9]
[1747923682801,19.00332995,178.33,178.27,74.9]
[1747923682955,24.6109114,178.33,178.27,74.9]
[1747923683160,5.60758145,178.33,178.27,74.9]
[1747923683369,24.6109114,178.33,178.27,74.9]
[1747923683654,19.00332995,178.31,178.27,74.9]
[1747923683956,19.00332995,178.29,178.25,33.58]
[1747923684371,26.0,178.32,178.24,33.58]
[1747923684372,19.00332995,178.28,178.24,33.58]
[1747923684668,19.00332995,178.28,178.23,74.9]
[1747923684969,5.60921446,178.28,178.23,74.9]
[1747923685389,24.61254441,178.28,178.23,41.32]
[1747923685714,29.9962587,178.26,178.23,41.32]
[1747923685895,29.9962587,178.27,178.23,41.32]
[1747923686986,29.9962587,178.28,178.23,41.32]
[1747923687789,19.62876793,178.31,178.23,41.32]
[1747923687790,5.60726701,178.34,178.24,18.64964886]
[1747923687994,35.60352571,178.34,178.24,18.64964886]
[1747923688792,49.62169325,178.34,178.24,18.64964886]
[1747923688989,29.9962587,178.33,178.24,18.64964886]
[1747923689193,49.6238944,178.32,178.23,41.32]
[1747923690417,29.9962587,178.29,178.23,41.32]
[1747923690571,29.9962587,178.27,178.23,74.92]
[1747923691077,5.60978346,178.26,178.23,41.32]
[1747923691996,5.60883953,178.29,178.23,41.32]
[1747923692393,29.9962587,178.33,178.24,33.62]
[1747923692703,5.60758145,178.33,178.24,59.62]
[1747923692904,5.60758145,178.33,178.25,18.64964886]
[1747923693111,5.60726701,178.34,178.25,24.25962892]
[1747923693400,35.60352571,178.34,178.25,18.64964886]
[1747923693697,35.60352571,178.34,178.25,24.25970376]
[1747923694700,5.60726701,178.34,178.25,24.25970376]
[1747923695072,49.62169325,178.34,178.24,59.62]
[1747923695396,29.9962587,178.33,178.24,59.62]
[1747923695597,29.9962587,178.31,178.25,74.98]
[1747923696401,29.9962587,178.32,178.25,74.98]
[1747923696604,29.9962587,178.31,178.25,74.98]
[1747923696982,29.9962587,178.32,178.25,74.98]
[1747923697206,29.9962587,178.31,178.25,74.98]
[1747923698691,29.9962587,178.32,178.25,74.98]
[1747923699005,29.9962587,178.33,178.25,74.98]
[1747923699707,5.60789591,178.32,178.25,74.98]
[1747923699905,5.60789591,178.32,178.25,80.59006419]
[1747923700208,5.60789591,178.32,178.25,80.59005624]
[1747923701184,5.60758145,178.33,178.25,80.59005624]
[1747923702605,5.60758145,178.33,178.25,74.98]
[1747923702809,5.60758145,178.33,178.22,18.79181043]
[1747923702810,29.9962587,178.3,178.22,26.0]
[1747923702988,29.9962587,178.3,178.23,74.88]
[1747923703313,5.60852495,178.3,178.24,33.62]
[1747923703491,5.60827859,178.31,178.24,33.62]
[1747923704313,5.607863,178.33,178.25,18.64964886]
[1747923704506,5.607863,178.33,178.28,26.0]
[1747923704688,5.607863,178.33,178.29,33.62]
[1747923705104,38.1555587,178.35,178.3,41.26]
[1747923705105,13.76648554,178.35,178.3,41.26]
[1747923705805,5.60632393,178.37,178.3,46.86848303]
[1747923706184,5.60632393,178.37,178.3,41.26]
[1747923706384,35.60258263,178.37,178.3,41.26]
[1747923707103,35.60258263,178.37,178.3,46.86845661]
[1747923707817,5.60632393,178.37,178.3,46.86845661]
[1747923708585,35.60258263,178.37,178.3,41.26]
[1747923708812,49.61839246,178.37,178.3,41.26]
[1747923709212,5.60632393,178.37,178.3,41.26]
[1747923710504,35.60258263,178.37,178.3,41.26]
[1747923711430,5.60632393,178.37,178.3,41.26]
[1747923711807,5.60632393,178.37,178.3,46.8684866]
[1747923712140,5.60579325,178.39,178.31,18.64964886]
[1747923712438,14.59030977,178.41,178.32,0.14216157]
[1747923712600,5.60483997,178.42,178.34,18.64964886]
[1747923713729,5.60483997,178.42,178.35,5.60695262]
[1747923713897,5.60483997,178.42,178.34,24.25683496]
[1747923715823,35.60109867,178.42,178.33,39.22756969]
[1747923716024,19.61672204,178.42,178.33,33.62]
[1747923716217,29.9962587,178.4,178.33,33.62]
[1747923717013,19.61672204,178.42,178.33,33.62]
[1747923717321,29.9962587,178.39,178.33,33.62]
[1747923717525,29.9962587,178.4,178.33,33.62]
[1747923717721,5.60569538,178.39,178.33,33.62]
[1747923720228,29.9962587,178.36,178.28,1.5084]
[1747923720416,55.9962587,178.38,178.3,74.86]
[1747923720824,5.60569538,178.39,178.31,18.64964886]
[1747923721227,5.6053726,178.41,178.32,0.14216157]
[1747923721824,19.61804005,178.41,178.31,18.64964886]
[1747923722135,55.9962587,178.36,178.29,41.24]
[1747923722335,29.9962587,178.35,178.29,74.86]
[1747923722539,26.0,178.39,178.29,74.86]
[1747923722847,5.60506698,178.41,178.33,18.64964886]
[1747923723057,5.60506698,178.41,178.34,33.62]
[1747923723920,5.60475283,178.42,178.34,39.22705898]
[1747923724729,19.6166349,178.42,178.34,33.62]
[1747923724922,5.60475283,178.42,178.34,33.62]
[1747923725629,5.60443883,178.43,178.35,18.64964886]
[1747923725823,19.61553561,178.43,178.36,41.24]
[1747923726837,49.61179431,178.43,178.36,41.24]
[1747923727542,5.60443883,178.43,178.36,41.24]
[1747923727739,35.60069753,178.43,178.36,41.24]
[1747923728243,29.9962587,178.42,178.36,41.24]
[1747923728435,49.61179431,178.43,178.36,41.24]
[1747923728636,49.61179431,178.43,178.36,74.86]
[1747923729029,49.61179431,178.43,178.36,41.24]
[1747923729341,19.61553561,178.43,178.36,74.86]
[1747923729655,5.60443883,178.43,178.36,74.86]
[1747923730161,19.61553561,178.43,178.36,74.86]
[1747923730731,29.9962587,178.42,178.36,74.86]
[1747923730953,26.0,178.42,178.36,41.24]
[1747923731124,29.9962587,178.41,178.36,41.24]
[1747923731845,19.00330748,178.41,178.36,41.24]
[1747923732051,5.60538116,178.4,178.36,41.24]
[1747923732571,19.61883407,178.4,178.36,41.24]
[1747923733029,19.00330748,178.39,178.36,41.24]
[1747923733357,19.00330748,178.38,178.36,41.24]
[1747923733568,45.00330748,178.37,178.28,209.74]
[1747923733727,26.0,178.3,178.29,41.14]
[1747923733929,5.60883953,178.29,178.18,1.5363]
[1747923734135,19.00330748,178.28,178.23,41.14]
[1747923734334,19.00330748,178.28,178.23,74.76]
[1747923734921,19.00330748,178.27,178.23,74.76]
[1747923735250,19.00330748,178.28,178.23,74.76]
[1747923735431,19.63093835,178.29,178.23,41.14]
[1747923735432,19.00330748,178.25,178.23,41.14]
[1747923735628,30.00213707,178.24,178.19,33.62]
[1747923735945,5.61104253,178.22,178.19,33.62]
[1747923736950,5.61009817,178.25,178.19,33.62]
[1747923738052,30.00213707,178.25,178.19,33.62]
[1747923738257,30.00213707,178.26,178.19,33.62]
[1747923738631,30.00213707,178.27,178.19,33.62]
[1747923738837,30.00213707,178.25,178.19,33.62]
[1747923739159,30.00213707,178.28,178.19,33.62]
[1747923739460,30.00213707,178.28,178.19,39.2319526]
[1747923739967,19.63093835,178.29,178.19,39.2319526]
[1747923739968,5.60821042,178.31,178.24,24.26006178]
[1747923740140,14.01752459,178.35,178.25,74.78]
[1747923740340,14.01752459,178.35,178.26,18.64964886]
[1747923740539,44.01966166,178.35,178.25,74.78]
[1747923740753,35.60877532,178.36,178.26,44.64964886]
[1747923740935,5.60663825,178.36,178.26,44.64964886]
[1747923742042,49.62537096,178.36,178.26,26.0]
[1747923742235,30.00213707,178.35,178.26,26.0]
[1747923742444,30.00213707,178.31,178.27,41.16]
[1747923742656,26.0,178.33,178.27,41.16]
[1747923742955,30.00213707,178.31,178.27,41.16]
[1747923743160,30.00213707,178.31,178.25,74.78]
[1747923743366,26.0,178.34,178.25,74.78]
[1747923743663,30.00213707,178.3,178.25,74.78]
[1747923744162,35.6109766,178.29,178.25,74.78]
[1747923744363,56.00213707,178.26,178.21,74.78]
[1747923744660,56.00213707,178.25,178.21,74.78]
[1747923744840,56.00213707,178.25,178.21,41.16]
[1747923745040,26.0,178.25,178.21,41.16]
[1747923745638,30.00213707,178.22,178.21,41.16]
[1747923746168,5.61230216,178.18,178.16,41.16]
[1747923746457,35.61443923,178.18,178.14,33.62]
[1747923746675,5.61230216,178.18,178.14,33.62]
[1747923746877,35.61443923,178.18,178.14,33.62]
[1747923747037,5.61230216,178.18,178.14,33.62]
[1747923747237,19.64305757,178.18,178.14,33.62]
[1747923747436,49.64519464,178.18,178.14,33.62]
[1747923747653,19.64305757,178.18,178.14,33.62]
[1747923747868,19.64305757,178.18,178.13,41.16]
[1747923747869,30.00213707,178.16,178.13,41.16]
[1747923748079,49.64960534,178.14,178.05,209.82]
[1747923748355,30.00213707,178.11,178.06,74.8]
[1747923749273,30.00213707,178.12,178.06,74.8]
[1747923749483,5.61356236,178.14,178.06,74.8]
[1747923749761,6.4002,178.18,178.07,18.64964886]
[1747923749966,49.63986997,178.23,178.1,18.79181043]
[1747923750138,49.63986997,178.23,178.14,0.14216157]
[1747923750139,5.61072771,178.23,178.14,0.14216157]
[1747923750467,5.61072771,178.23,178.15,74.8]
[1747923751670,5.61009817,178.25,178.16,18.64964886]
[1747923752045,26.0,178.24,178.16,18.64964886]
[1747923752247,5.61045176,178.24,178.17,5.61261716]
[1747923752452,5.61045176,178.24,178.16,24.26252442]
[1747923752649,5.60915413,178.28,178.17,0.14216157]
[1747923752865,26.0,178.25,178.17,0.14216157]
[1747923753479,5.60915413,178.28,178.17,0.14216157]
[1747923753655,14.0201155,178.32,178.17,0.14216157]
[1747923753656,5.60821042,178.31,178.17,0.14216157]
[1747923753969,26.0,178.28,178.17,0.14216157]
[1747923754170,26.0,178.28,178.19,18.79181043]
[1747923754349,30.00213707,178.27,178.2,74.82]
[1747923754545,56.00213707,178.23,178.1,20.66430388]
[1747923754774,56.00213707,178.23,178.11,93.61181043]
[1747923755066,30.00213707,178.18,178.11,41.18]
[1747923755246,30.00213707,178.16,178.11,74.82]
[1747923755441,30.00213707,178.18,178.11,74.82]
[1747923755770,26.0,178.16,178.11,74.82]
[1747923756071,26.0,178.16,178.12,33.64]
[1747923756373,26.0,178.16,178.11,41.18]
[1747923756579,26.0,178.16,178.12,33.64]
[1747923757778,49.64519464,178.18,178.12,33.64]
[1747923758466,30.00213707,178.17,178.12,33.64]
[1747923758855,5.61230216,178.18,178.12,33.64]
[1747923759076,36.25843707,178.23,178.13,18.64964886]
[1747923759245,5.61104253,178.22,178.14,0.14216157]
[1747923759450,5.60946878,178.27,178.14,0.14216157]
[1747923759777,5.60946878,178.27,178.17,18.79181043]
[1747923759956,31.60946878,178.27,178.18,74.82]
[1747923760481,31.60946878,178.27,178.13,10.0]
[1747923760482,30.00213707,178.25,178.19,74.82]
[1747923760772,30.00213707,178.22,178.17,74.82]
[1747923760977,26.0,178.24,178.17,74.82]
[1747923761150,30.00213707,178.22,178.17,74.82]
[1747923761351,26.0,178.21,178.17,74.82]
[1747923761854,30.00213707,178.22,178.17,74.82]
[1747923762060,26.0,178.2,178.17,74.82]
[1747923762458,56.00213707,178.2,178.15,33.64]
[1747923762658,26.0,178.18,178.15,33.64]
[1747923763865,5.61261716,178.17,178.15,33.64]
[1747923764478,26.0,178.14,178.1,41.12]
[1747923764683,56.00213707,178.14,178.1,41.12]
[1747923764872,26.0,178.14,178.1,41.12]
[1747923765076,11.66231716,178.17,178.1,41.12]
[1747923765268,26.0,178.18,178.1,41.12]
[1747923765876,5.61261716,178.17,178.1,41.12]
[1747923766580,5.61261716,178.17,178.1,46.7346995]
[1747923766881,31.61235557,178.18,178.11,18.64964886]
[1747923767587,26.0,178.18,178.11,18.64964886]
[1747923768185,31.61242103,178.18,178.11,24.26396365]
[1747923768386,31.61242103,178.18,178.1,46.73473934]
[1747923769559,31.61242103,178.18,178.1,41.12]
[1747923769764,45.64317644,178.18,178.11,33.66]
[1747923769968,31.61242103,178.18,178.11,33.66]
[1747923771677,31.61242103,178.18,178.09,5.61508461]
[1747923771855,61.6145581,178.18,178.1,41.12]
[1747923772055,26.0,178.14,178.11,33.66]
[1747923772490,26.0,178.14,178.1,41.12]
[1747923772702,26.0,178.13,178.1,41.12]
[1747923772864,30.00213707,178.14,178.1,41.12]
[1747923773061,26.0,178.11,178.1,41.12]
[1747923773486,31.61450788,178.11,178.1,41.12]
[1747923776363,75.65291467,178.11,178.05,284.6]
[1747923776676,30.00213707,178.1,178.05,284.6]
[1747923776876,75.65291467,178.11,178.05,284.6]
[1747923777979,45.6507776,178.11,178.05,284.6]
[1747923778487,18.64964886,178.16,178.05,284.6]
[1747923778488,5.6138775,178.13,178.06,18.64964886]
[1747923778787,26.0,178.13,178.06,18.64964886]
[1747923779286,5.61293219,178.16,178.06,18.64964886]
[1747923779493,31.61356236,178.14,178.06,24.26545351]
[1747923779795,31.61356236,178.14,178.06,18.64964886]
[1747923780163,31.61356236,178.14,178.05,284.6]
[1747923780567,75.64960534,178.14,178.05,284.6]
[1747923780768,45.64746827,178.14,178.05,284.6]
[1747923782499,45.64746827,178.14,178.05,290.2163039]
[1747923782685,31.61356236,178.14,178.05,290.2163039]
[1747923782885,31.61356236,178.14,178.05,284.6]
[1747923783089,61.61569943,178.14,178.05,284.6]
[1747923783313,75.64960534,178.14,178.05,284.6]
[1747923783503,45.64746827,178.14,178.05,284.6]
[1747923783686,75.64960534,178.14,178.05,284.6]
[1747923784789,75.64960534,178.14,178.05,250.94]
[1747923784999,75.64960534,178.14,178.06,33.66]
[1747923785495,45.64746827,178.14,178.06,33.66]
[1747923785816,26.0,178.1,178.06,33.66]
[1747923786316,5.61293219,178.16,178.06,39.27604087]
[1747923786617,5.61293219,178.16,178.06,33.66]
[1747923786618,19.64526267,178.16,178.06,33.66]
[1747923786794,30.00213707,178.14,178.02,0.14216157]
[1747923786982,26.0,178.13,178.07,41.14]
[1747923787182,56.00213707,178.13,178.08,33.66]
[1747923787415,26.0,178.09,178.05,41.14]
[1747923787602,49.65622511,178.08,178.02,41.14]
[1747923787815,45.65408804,178.08,178.03,33.66]
[1747923788121,75.65622511,178.08,178.03,33.66]
[1747923788723,30.00213707,178.07,178.03,33.66]
[1747923789223,26.0,178.04,178.02,41.14]
[1747923789386,26.0,178.04,178.01,33.66]
[1747923789591,5.61766192,178.01,177.98,210.02]
[1747923789812,5.61766192,178.01,177.99,33.66]
[1747923790009,26.0,177.99,177.89,4.48491742]
[1747923790329,30.00213707,177.96,177.9,41.14]
[1747923790494,26.0,177.93,177.9,33.66]
[1747923790687,56.00213707,177.93,177.9,33.66]
[1747923790919,26.0,177.91,177.9,33.66]
[1747923791811,26.0,177.93,177.9,33.66]
[1747923792401,26.0,177.92,177.9,33.66]
[1747923792605,5.61959508,177.95,177.9,33.66]
[1747923792791,26.0,177.94,177.9,33.66]
[1747923794888,31.61994606,177.94,177.9,33.66]
[1747923795220,26.0,177.93,177.9,33.66]
[1747923795589,5.61994606,177.94,177.9,33.66]
[1747923795790,26.0,177.91,177.88,33.68]
[1747923795991,71.15320193,177.93,177.82,1.5965]
[1747923796196,5.62176748,177.88,177.82,33.68]
[1747923797233,5.62080218,177.92,177.82,39.30361569]
[1747923798094,5.62080218,177.92,177.83,18.64964886]
[1747923798298,5.62018771,177.93,177.83,24.27288329]
[1747923798718,50.77338964,177.93,177.83,24.27288329]
[1747923799022,5.62018771,177.93,177.83,24.27288329]
[1747923801112,5.61987186,177.94,177.83,24.27288329]
[1747923801421,5.61987186,177.94,177.86,26.0]
[1747923801717,5.11941451,177.96,177.87,74.8]
[1747923801923,5.61860883,177.98,177.88,18.64964886]
[1747923802105,5.61860883,177.98,177.89,26.0]
[1747923802309,5.61860883,177.98,177.9,18.64964886]
[1747923802819,5.61828277,178.0,177.9,18.64964886]
[1747923803036,5.61703083,178.03,177.93,26.0]
[1747923803197,14.04211612,178.04,177.94,80.43987186]
[1747923803623,5.61671534,178.04,177.94,80.43987186]
[1747923804128,50.76991727,178.04,177.94,80.43987186]
[1747923804328,5.61671534,178.04,177.94,80.43987186]
[1747923805110,5.61671534,178.04,177.93,44.64964886]
[1747923805431,5.61671534,178.04,177.94,74.8]
[1747923805609,5.61671534,178.04,177.95,18.64964886]
[1747923806355,5.61671534,178.04,177.98,26.0]
[1747923806633,11.86407508,178.05,177.99,33.68]
[1747923807311,25.90507479,178.05,177.99,33.68]
[1747923808432,25.90507479,178.05,177.94,41.12]
[1747923808636,25.90507479,178.05,177.95,33.68]
[1747923809140,5.61615433,178.06,177.98,26.0]
[1747923810128,5.61569236,178.08,177.99,18.64964886]
[1747923810331,5.61569236,178.08,178.0,33.68]
[1747923810540,14.03656914,178.11,178.02,18.64964886]
[1747923810541,5.61450788,178.11,178.02,18.64964886]
[1747923811100,19.64762428,178.14,178.03,5.61703083]
[1747923811333,64.80082621,178.14,178.03,5.61703083]
[1747923811510,19.64762428,178.14,178.03,5.61703083]
[1747923812046,5.61356236,178.14,178.06,26.0]
[1747923812346,5.61356236,178.14,178.07,33.68]
[1747923812542,5.61356236,178.14,178.08,41.1]
[1747923813839,19.64746827,178.14,178.08,41.1]
[1747923814929,49.68186129,178.14,178.08,41.1]
[1747923815242,30.03439302,178.09,178.03,41.1]
[1747923815441,30.03439302,178.06,178.03,41.1]
[1747923815927,5.61639988,178.05,178.03,41.1]
[1747923817920,19.65231726,178.1,178.03,41.1]
[1747923818120,30.03439302,178.09,178.03,41.1]
[1747923818318,49.68671028,178.1,178.03,41.1]
[1747923818524,5.61482313,178.1,178.03,41.1]
[1747923818733,5.61482313,178.1,178.04,26.0]
[1747923819829,19.64889861,178.13,178.04,26.0]
[1747923820125,30.03439302,178.12,178.04,26.0]
[1747923820321,30.03439302,178.07,178.04,33.68]
[1747923820742,30.03439302,178.07,178.0,26.0]
[1747923820935,30.03439302,178.07,178.01,100.78]
[1747923821141,30.03439302,178.07,178.01,74.78]
[1747923821340,30.03439302,178.06,178.01,74.78]
[1747923821566,30.03439302,178.07,178.01,74.78]
[1747923821862,5.61608446,178.06,178.01,74.78]
[1747923822161,35.65047748,178.06,178.01,74.78]
[1747923822461,49.69068864,178.06,178.01,74.78]
[1747923822637,5.61608446,178.06,178.01,74.78]
[1747923823139,5.61513841,178.09,178.01,74.78]
[1747923823932,5.61450788,178.11,178.01,80.39762991]
[1747923824252,19.6507776,178.11,178.02,26.0]
[1747923824824,19.6507776,178.11,178.04,26.0]
[1747923825438,5.61450788,178.11,178.04,26.0]
[1747923825943,5.61419267,178.12,178.04,26.0]
[1747923826458,5.61419267,178.12,178.06,26.0]
[1747923826757,5.61356236,178.14,178.07,33.68]
[1747923826939,5.61356236,178.14,178.08,41.06]
[1747923827257,5.61322365,178.16,178.09,26.0]
[1747923827635,5.61230216,178.18,178.11,26.0]
[1747923827949,5.61230216,178.18,178.12,33.68]
[1747923830261,19.64109982,178.2,178.12,33.68]
[1747923831970,5.61167227,178.2,178.12,39.29417819]
[1747923832339,5.61104253,178.22,178.12,39.29417819]
[1747923832561,5.61104253,178.22,178.15,26.0]
[1747923832771,5.61104253,178.22,178.16,41.04]
[1747923832933,5.61104253,178.22,178.17,33.66]
[1747923833349,5.61009817,178.25,178.17,33.66]
[1747923835184,45.01678668,178.23,178.13,26.0]
[1747923835472,45.01678668,178.22,178.17,41.04]
[1747923835659,45.01678668,178.22,178.15,41.04]
[1747923836552,45.63975084,178.21,178.15,41.04]